[Event "January 9 Early 2024"]
[Site "https://www.chess.com"]
[Date "2024.01.11"]
[Round "8"]
[White "Yelisieiev, Yevhenii"]
[Black "Petrukhina, Olga"]
[Result "1-0"]
[Board "182"]
[TimeControl "180+1"]
[WhiteFideId "14139642"]
[BlackFideId "13703935"]
[WhiteElo "2499"]
[BlackElo "2285"]
[WhiteTeam "GER"]
[BlackTeam "KAZ"]
[WhiteClock "0:00:09"]
[BlackClock "0:00:01"]

1. d4 {[%clk 0:02:54]}  e6 {[%clk 0:03:00]} 2. Nf3 {[%clk 0:02:54]}  Nf6 {[%clk 0:03:01]} 3. c4 {[%clk 0:02:54]}  d5 {[%clk 0:03:00]} 4. Nc3 {[%clk 0:02:54]}  Be7 {[%clk 0:02:59]} 5. Bg5 {[%clk 0:02:53]}  O-O {[%clk 0:02:58]} 6. e3 {[%clk 0:02:54]}  h6 {[%clk 0:02:57]} 7. Bh4 {[%clk 0:02:53]}  Ne4 {[%clk 0:02:57]} 8. Bxe7 {[%clk 0:02:51]}  Qxe7 {[%clk 0:02:58]} 9. Nxe4 {[%clk 0:02:50]}  dxe4 {[%clk 0:02:58]} 10. Nd2 {[%clk 0:02:50]}  f5 {[%clk 0:02:57]} 11. Be2 {[%clk 0:02:45]}  c5 {[%clk 0:02:50]} 12. Nb3 {[%clk 0:02:31]}  cxd4 {[%clk 0:02:44]} 13. exd4 {[%clk 0:02:32]}  e5 {[%clk 0:02:15]} 14. dxe5 {[%clk 0:02:25]}  Nc6 {[%clk 0:02:10]} 15. Qd6 {[%clk 0:02:18]}  Qxe5 {[%clk 0:02:01]} 16. Qxe5 {[%clk 0:02:17]}  Nxe5 {[%clk 0:02:02]} 17. O-O {[%clk 0:02:12]}  Be6 {[%clk 0:01:56]} 18. Nc5 {[%clk 0:01:52]}  Bxc4 {[%clk 0:01:48]} 19. Bxc4+ {[%clk 0:01:49]}  Nxc4 {[%clk 0:01:49]} 20. b3 {[%clk 0:01:42]}  Ne5 {[%clk 0:01:36]} 21. Nxb7 {[%clk 0:01:40]}  Rac8 {[%clk 0:01:15]} 22. Rfc1 {[%clk 0:01:30]}  Nd3 {[%clk 0:01:03]} 23. Rxc8 {[%clk 0:01:25]}  Rxc8 {[%clk 0:01:04]} 24. Nd6 {[%clk 0:01:25]}  Rc5 {[%clk 0:01:02]} 25. Rd1 {[%clk 0:01:00]}  Rc2 {[%clk 0:00:29]} 26. Nxf5 {[%clk 0:00:59]}  Nxf2 {[%clk 0:00:20]} 27. Rd8+ {[%clk 0:00:26]}  Kf7 {[%clk 0:00:20]} 28. h3 {[%clk 0:00:19]}  Nd3 {[%clk 0:00:14]} 29. Nd6+ {[%clk 0:00:18]}  Ke7 {[%clk 0:00:12]} 30. Rc8 {[%clk 0:00:16]}  Rxa2 {[%clk 0:00:08]} 31. Nxe4 {[%clk 0:00:17]}  Kd7 {[%clk 0:00:08]} 32. Rg8 {[%clk 0:00:16]}  g5 {[%clk 0:00:07]} 33. Rg7+ {[%clk 0:00:16]}  Ke6 {[%clk 0:00:07]} 34. Nc3 {[%clk 0:00:12]}  Rc2 {[%clk 0:00:06]} 35. Nb5 {[%clk 0:00:12]}  Nf4 {[%clk 0:00:06]} 36. Nd4+ {[%clk 0:00:11]}  Kf6 {[%clk 0:00:05]} 37. Nxc2 {[%clk 0:00:10]}  Kxg7 {[%clk 0:00:05]} 38. Kf2 {[%clk 0:00:10]}  Nd3+ {[%clk 0:00:04]} 39. Ke3 {[%clk 0:00:11]}  Nc5 {[%clk 0:00:04]} 40. b4 {[%clk 0:00:10]}  Ne6 {[%clk 0:00:03]} 41. g3 {[%clk 0:00:09]}  Kf6 {[%clk 0:00:03]} 42. Ke4 {[%clk 0:00:10]}  h5 {[%clk 0:00:03]} 43. Ne3 {[%clk 0:00:08]}  Kg6 {[%clk 0:00:02]} 44. Ke5 {[%clk 0:00:08]}  Nc7 {[%clk 0:00:02]} 45. Nc4 {[%clk 0:00:07]}  Nb5 {[%clk 0:00:02]} 46. Na5 {[%clk 0:00:07]}  Nc3 {[%clk 0:00:02]} 47. Nc6 {[%clk 0:00:08]}  Ne2 {[%clk 0:00:02]} 48. Nxa7 {[%clk 0:00:07]}  Nxg3 {[%clk 0:00:02]} 49. b5 {[%clk 0:00:08]}  Ne2 {[%clk 0:00:01]} 50. b6 {[%clk 0:00:08]}  Nc3 {[%clk 0:00:01]} 51. b7 {[%clk 0:00:09]} 1-0

[Event "January 9 Early 2024"]
[Site "https://www.chess.com"]
[Date "2024.01.11"]
[Round "8"]
[White "Grischuk, Alexander"]
[Black "Durarbayli, Vasif"]
[Result "1-0"]
[Board "183"]
[TimeControl "180+1"]
[WhiteFideId "4126025"]
[BlackFideId "13402935"]
[WhiteElo "3074"]
[BlackElo "2824"]
[WhiteTeam "RUS"]
[BlackTeam "AZE"]
[WhiteClock "0:00:06"]
[BlackClock "0:00:03"]

1. d4 {[%clk 0:03:00]}  d5 {[%clk 0:02:57]} 2. Nf3 {[%clk 0:02:59]}  Nf6 {[%clk 0:02:58]} 3. Bf4 {[%clk 0:02:59]}  c5 {[%clk 0:02:58]} 4. e3 {[%clk 0:02:59]}  Nc6 {[%clk 0:02:58]} 5. Nbd2 {[%clk 0:02:59]}  Qb6 {[%clk 0:02:59]} 6. dxc5 {[%clk 0:02:55]}  Qxb2 {[%clk 0:02:59]} 7. Rb1 {[%clk 0:02:54]}  Qc3 {[%clk 0:03:00]} 8. Bb5 {[%clk 0:02:54]}  e6 {[%clk 0:02:58]} 9. O-O {[%clk 0:02:50]}  Be7 {[%clk 0:02:54]} 10. e4 {[%clk 0:02:49]}  O-O {[%clk 0:02:40]} 11. e5 {[%clk 0:02:50]}  Nd7 {[%clk 0:02:36]} 12. Nb3 {[%clk 0:02:49]}  Qb4 {[%clk 0:02:33]} 13. Nfd4 {[%clk 0:02:46]}  Nxd4 {[%clk 0:02:25]} 14. Nxd4 {[%clk 0:02:46]}  Qxc5 {[%clk 0:02:25]} 15. Re1 {[%clk 0:02:46]}  Bd8 {[%clk 0:02:25]} 16. Re3 {[%clk 0:02:25]}  Bb6 {[%clk 0:02:17]} 17. c3 {[%clk 0:02:25]}  Qe7 {[%clk 0:02:17]} 18. Qg4 {[%clk 0:01:20]}  f5 {[%clk 0:02:04]} 19. Qh5 {[%clk 0:01:20]}  Rf7 {[%clk 0:01:38]} 20. Bg5 {[%clk 0:01:06]}  Qe8 {[%clk 0:01:39]} 21. h4 {[%clk 0:00:58]}  Bc5 {[%clk 0:01:19]} 22. a4 {[%clk 0:00:45]}  a6 {[%clk 0:01:09]} 23. Bd3 {[%clk 0:00:46]}  Qe7 {[%clk 0:01:10]} 24. Bxe7 {[%clk 0:00:45]}  Rxe7 {[%clk 0:00:49]} 25. Re2 {[%clk 0:00:43]}  Nf8 {[%clk 0:00:44]} 26. Qg5 {[%clk 0:00:40]}  Rc7 {[%clk 0:00:44]} 27. Reb2 {[%clk 0:00:38]}  Be7 {[%clk 0:00:40]} 28. Qd2 {[%clk 0:00:37]}  Bxh4 {[%clk 0:00:40]} 29. Rb6 {[%clk 0:00:36]}  Be7 {[%clk 0:00:37]} 30. Nf3 {[%clk 0:00:31]}  Bc5 {[%clk 0:00:33]} 31. R6b3 {[%clk 0:00:30]}  Ra7 {[%clk 0:00:32]} 32. c4 {[%clk 0:00:29]}  d4 {[%clk 0:00:25]} 33. a5 {[%clk 0:00:25]}  Bd7 {[%clk 0:00:18]} 34. Rb6 {[%clk 0:00:25]}  Bc6 {[%clk 0:00:18]} 35. Ng5 {[%clk 0:00:18]}  Ra8 {[%clk 0:00:15]} 36. Rxc6 {[%clk 0:00:15]}  bxc6 {[%clk 0:00:15]} 37. Qe2 {[%clk 0:00:13]}  Rd8 {[%clk 0:00:11]} 38. g3 {[%clk 0:00:12]}  Be7 {[%clk 0:00:11]} 39. Nh3 {[%clk 0:00:11]}  Nd7 {[%clk 0:00:09]} 40. Nf4 {[%clk 0:00:08]}  Nc5 {[%clk 0:00:10]} 41. Bc2 {[%clk 0:00:08]}  Kf7 {[%clk 0:00:06]} 42. Qh5+ {[%clk 0:00:07]}  Kg8 {[%clk 0:00:06]} 43. Nd3 {[%clk 0:00:07]}  Ne4 {[%clk 0:00:06]} 44. Rb6 {[%clk 0:00:07]}  g6 {[%clk 0:00:03]} 45. Qf3 {[%clk 0:00:06]}  c5 {[%clk 0:00:02]} 46. Qe2 {[%clk 0:00:06]}  Kf7 {[%clk 0:00:03]} 47. Kg2 {[%clk 0:00:06]}  Ra7 {[%clk 0:00:03]} 48. Nf4 {[%clk 0:00:05]}  Nc3 {[%clk 0:00:02]} 49. Qf3 {[%clk 0:00:05]}  Ne4 {[%clk 0:00:03]} 50. Bxe4 {[%clk 0:00:05]}  fxe4 {[%clk 0:00:03]} 51. Qxe4 {[%clk 0:00:06]} 1-0

[Event "January 9 Early 2024"]
[Site "https://www.chess.com"]
[Date "2024.01.11"]
[Round "8"]
[White "Mirzoev, Azer"]
[Black "Tatarinov, Dmitry"]
[Result "1-0"]
[Board "185"]
[TimeControl "180+1"]
[WhiteFideId "13400304"]
[BlackFideId "24160067"]
[WhiteElo "2651"]
[BlackElo "2747"]
[WhiteTeam "AZE"]
[BlackTeam "RUS"]
[WhiteClock "0:00:07"]
[BlackClock "0:00:05"]

1. d4 {[%clk 0:03:00]}  Nf6 {[%clk 0:02:52]} 2. Nf3 {[%clk 0:03:00]}  g6 {[%clk 0:02:52]} 3. Bf4 {[%clk 0:03:00]}  d6 {[%clk 0:02:52]} 4. e3 {[%clk 0:03:00]}  Nh5 {[%clk 0:02:52]} 5. Bg5 {[%clk 0:02:56]}  h6 {[%clk 0:02:51]} 6. Bh4 {[%clk 0:02:56]}  g5 {[%clk 0:02:51]} 7. Nfd2 {[%clk 0:02:56]}  Ng7 {[%clk 0:02:51]} 8. Bg3 {[%clk 0:02:56]}  Nf5 {[%clk 0:02:52]} 9. c3 {[%clk 0:02:54]}  Bg7 {[%clk 0:02:52]} 10. Bd3 {[%clk 0:02:49]}  c5 {[%clk 0:02:49]} 11. Na3 {[%clk 0:02:46]}  cxd4 {[%clk 0:02:49]} 12. exd4 {[%clk 0:02:41]}  Nc6 {[%clk 0:02:49]} 13. Nc2 {[%clk 0:02:29]}  h5 {[%clk 0:02:45]} 14. Ne3 {[%clk 0:02:12]}  Nxe3 {[%clk 0:02:42]} 15. fxe3 {[%clk 0:02:12]}  h4 {[%clk 0:02:36]} 16. Bf2 {[%clk 0:02:11]}  h3 {[%clk 0:02:36]} 17. g3 {[%clk 0:02:11]}  e5 {[%clk 0:02:27]} 18. O-O {[%clk 0:02:10]}  f5 {[%clk 0:02:21]} 19. Qc2 {[%clk 0:02:04]}  e4 {[%clk 0:02:11]} 20. Bb5 {[%clk 0:02:03]}  d5 {[%clk 0:01:59]} 21. c4 {[%clk 0:01:41]}  Be6 {[%clk 0:01:59]} 22. Qa4 {[%clk 0:01:36]}  O-O {[%clk 0:01:43]} 23. Bxc6 {[%clk 0:01:33]}  bxc6 {[%clk 0:01:44]} 24. Qxc6 {[%clk 0:01:33]}  Qc8 {[%clk 0:01:23]} 25. Qxc8 {[%clk 0:01:32]}  Raxc8 {[%clk 0:01:24]} 26. c5 {[%clk 0:01:23]}  f4 {[%clk 0:01:24]} 27. b4 {[%clk 0:01:21]}  Bg4 {[%clk 0:01:15]} 28. Nb3 {[%clk 0:01:08]}  Rf7 {[%clk 0:01:01]} 29. exf4 {[%clk 0:00:45]}  gxf4 {[%clk 0:01:02]} 30. gxf4 {[%clk 0:00:45]}  Rxf4 {[%clk 0:00:59]} 31. Bg3 {[%clk 0:00:45]}  Rf3 {[%clk 0:00:44]} 32. Rxf3 {[%clk 0:00:44]}  Bxf3 {[%clk 0:00:45]} 33. b5 {[%clk 0:00:37]}  Bh6 {[%clk 0:00:45]} 34. Re1 {[%clk 0:00:34]}  Kh7 {[%clk 0:00:27]} 35. a4 {[%clk 0:00:31]}  e3 {[%clk 0:00:23]} 36. c6 {[%clk 0:00:20]}  e2 {[%clk 0:00:21]} 37. Kf2 {[%clk 0:00:20]}  Rf8 {[%clk 0:00:21]} 38. Bd6 {[%clk 0:00:19]}  Rf7 {[%clk 0:00:17]} 39. Kg3 {[%clk 0:00:16]}  Be4 {[%clk 0:00:07]} 40. c7 {[%clk 0:00:12]}  Rf3+ {[%clk 0:00:06]} 41. Kg4 {[%clk 0:00:12]}  Rc3 {[%clk 0:00:05]} 42. Nc5 {[%clk 0:00:10]}  Bf3+ {[%clk 0:00:05]} 43. Kh4 {[%clk 0:00:09]}  Bd2 {[%clk 0:00:05]} 44. c8=Q {[%clk 0:00:09]}  Bxe1+ {[%clk 0:00:05]} 45. Kg5 {[%clk 0:00:09]}  Bd2+ {[%clk 0:00:06]} 46. Kf6 {[%clk 0:00:08]}  e1=Q {[%clk 0:00:05]} 47. Qf5+ {[%clk 0:00:08]}  Kg8 {[%clk 0:00:05]} 48. Qg6+ {[%clk 0:00:07]} 1-0

[Event "January 9 Early 2024"]
[Site "https://www.chess.com"]
[Date "2024.01.11"]
[Round "8"]
[White "Marn, Jan"]
[Black "Wafa, Hamed"]
[Result "1-0"]
[Board "187"]
[TimeControl "180+1"]
[WhiteFideId "14619245"]
[BlackFideId "10628452"]
[WhiteElo "2505"]
[BlackElo "2812"]
[WhiteTeam "SLO"]
[BlackTeam "EGY"]
[WhiteClock "0:00:10"]
[BlackClock "0:00:11"]

1. b3 {[%clk 0:03:00]}  e5 {[%clk 0:02:56]} 2. Bb2 {[%clk 0:03:00]}  Nc6 {[%clk 0:02:52]} 3. e3 {[%clk 0:02:58]}  d5 {[%clk 0:02:52]} 4. Bb5 {[%clk 0:02:56]}  Bd6 {[%clk 0:02:52]} 5. Nf3 {[%clk 0:02:54]}  f6 {[%clk 0:02:52]} 6. c4 {[%clk 0:02:45]}  a6 {[%clk 0:02:47]} 7. Ba4 {[%clk 0:02:41]}  b5 {[%clk 0:02:28]} 8. cxb5 {[%clk 0:02:39]}  Nb4 {[%clk 0:02:28]} 9. O-O {[%clk 0:02:16]}  Bd7 {[%clk 0:02:21]} 10. bxa6 {[%clk 0:01:58]}  Bxa4 {[%clk 0:02:20]} 11. bxa4 {[%clk 0:01:59]}  Nd3 {[%clk 0:02:17]} 12. Qb3 {[%clk 0:01:54]}  Nxb2 {[%clk 0:02:14]} 13. Qxb2 {[%clk 0:01:55]}  Ne7 {[%clk 0:02:13]} 14. Nc3 {[%clk 0:01:51]}  c6 {[%clk 0:02:13]} 15. Rab1 {[%clk 0:01:40]}  Rxa6 {[%clk 0:02:12]} 16. Qc2 {[%clk 0:01:21]}  O-O {[%clk 0:02:02]} 17. Rb3 {[%clk 0:01:20]}  Ra7 {[%clk 0:01:23]} 18. Rfb1 {[%clk 0:01:21]}  Qc7 {[%clk 0:01:23]} 19. h3 {[%clk 0:01:05]}  Rfa8 {[%clk 0:01:21]} 20. d3 {[%clk 0:00:45]}  g6 {[%clk 0:01:12]} 21. Nd2 {[%clk 0:00:36]}  Kf7 {[%clk 0:01:03]} 22. R1b2 {[%clk 0:00:21]}  Qa5 {[%clk 0:01:02]} 23. e4 {[%clk 0:00:17]}  Qc5 {[%clk 0:00:58]} 24. exd5 {[%clk 0:00:15]}  cxd5 {[%clk 0:00:48]} 25. Nb5 {[%clk 0:00:14]}  Qxc2 {[%clk 0:00:44]} 26. Rxc2 {[%clk 0:00:15]}  Ra6 {[%clk 0:00:44]} 27. Nxd6+ {[%clk 0:00:10]}  Rxd6 {[%clk 0:00:45]} 28. Rb7 {[%clk 0:00:11]}  Ke6 {[%clk 0:00:42]} 29. Rcc7 {[%clk 0:00:11]}  Nc6 {[%clk 0:00:40]} 30. Nb3 {[%clk 0:00:08]}  e4 {[%clk 0:00:17]} 31. d4 {[%clk 0:00:06]}  Rad8 {[%clk 0:00:12]} 32. g4 {[%clk 0:00:06]}  f5 {[%clk 0:00:09]} 33. g5 {[%clk 0:00:06]}  f4 {[%clk 0:00:10]} 34. Rf7 {[%clk 0:00:07]}  Nxd4 {[%clk 0:00:08]} 35. Nxd4+ {[%clk 0:00:07]}  Ke5 {[%clk 0:00:09]} 36. Ne2 {[%clk 0:00:07]}  f3 {[%clk 0:00:08]} 37. Ng3 {[%clk 0:00:05]}  d4 {[%clk 0:00:09]} 38. Rbe7+ {[%clk 0:00:05]}  Re6 {[%clk 0:00:10]} 39. Rxe6+ {[%clk 0:00:04]}  Kxe6 {[%clk 0:00:11]} 40. Rf4 {[%clk 0:00:05]}  Ke5 {[%clk 0:00:11]} 41. Rxe4+ {[%clk 0:00:05]}  Kd5 {[%clk 0:00:12]} 42. Re1 {[%clk 0:00:05]}  Ra8 {[%clk 0:00:13]} 43. Rd1 {[%clk 0:00:06]}  Rxa4 {[%clk 0:00:13]} 44. Nf1 {[%clk 0:00:05]}  Rxa2 {[%clk 0:00:13]} 45. Nd2 {[%clk 0:00:06]}  Ra3 {[%clk 0:00:14]} 46. Kf1 {[%clk 0:00:06]}  Rd3 {[%clk 0:00:14]} 47. Ke1 {[%clk 0:00:06]}  Kd6 {[%clk 0:00:14]} 48. Ne4+ {[%clk 0:00:06]}  Ke5 {[%clk 0:00:14]} 49. Rxd3 {[%clk 0:00:07]}  Kxe4 {[%clk 0:00:14]} 50. Kd2 {[%clk 0:00:08]}  Kf4 {[%clk 0:00:09]} 51. h4 {[%clk 0:00:08]}  Ke4 {[%clk 0:00:09]} 52. Ra3 {[%clk 0:00:08]}  Kf4 {[%clk 0:00:10]} 53. Ra4 {[%clk 0:00:09]}  Ke4 {[%clk 0:00:10]} 54. Rb4 {[%clk 0:00:09]}  Kf4 {[%clk 0:00:10]} 55. Rxd4+ {[%clk 0:00:09]}  Kf5 {[%clk 0:00:11]} 56. Ke3 {[%clk 0:00:10]} 1-0

[Event "January 9 Early 2024"]
[Site "https://www.chess.com"]
[Date "2024.01.11"]
[Round "8"]
[White "Yagupov, Igor"]
[Black "Jimenez Almeida, Luis David"]
[Result "0-1"]
[Board "188"]
[TimeControl "180+1"]
[WhiteFideId "4113632"]
[BlackFideId "22242244"]
[WhiteElo "2620"]
[BlackElo "2526"]
[WhiteTeam "RUS"]
[BlackTeam "ESP"]
[WhiteClock "0:00:01"]
[BlackClock "0:00:06"]

1. e4 {[%clk 0:03:00]}  b6 {[%clk 0:02:57]} 2. d4 {[%clk 0:02:58]}  e6 {[%clk 0:02:57]} 3. Nf3 {[%clk 0:02:57]}  d5 {[%clk 0:02:54]} 4. e5 {[%clk 0:02:57]}  c5 {[%clk 0:02:53]} 5. c3 {[%clk 0:02:57]}  Qd7 {[%clk 0:02:50]} 6. h4 {[%clk 0:02:36]}  h5 {[%clk 0:02:44]} 7. Bg5 {[%clk 0:02:27]}  Ne7 {[%clk 0:02:41]} 8. Na3 {[%clk 0:02:12]}  Nf5 {[%clk 0:02:27]} 9. Bb5 {[%clk 0:01:46]}  Nc6 {[%clk 0:02:26]} 10. Nc2 {[%clk 0:01:43]}  a6 {[%clk 0:02:17]} 11. Bd3 {[%clk 0:01:42]}  Be7 {[%clk 0:01:52]} 12. Bxf5 {[%clk 0:01:37]}  exf5 {[%clk 0:01:50]} 13. Bxe7 {[%clk 0:01:37]}  Nxe7 {[%clk 0:01:44]} 14. Qd2 {[%clk 0:01:36]}  Qb5 {[%clk 0:01:39]} 15. Na3 {[%clk 0:01:34]}  Qc6 {[%clk 0:01:35]} 16. O-O {[%clk 0:01:33]}  Be6 {[%clk 0:01:35]} 17. b4 {[%clk 0:01:25]}  O-O {[%clk 0:01:33]} 18. Nc2 {[%clk 0:01:21]}  Rfe8 {[%clk 0:01:28]} 19. a4 {[%clk 0:01:17]}  Rac8 {[%clk 0:01:24]} 20. Rfc1 {[%clk 0:01:15]}  Qd7 {[%clk 0:01:08]} 21. a5 {[%clk 0:01:10]}  cxb4 {[%clk 0:01:03]} 22. Nxb4 {[%clk 0:01:05]}  Qb5 {[%clk 0:00:58]} 23. axb6 {[%clk 0:00:51]}  a5 {[%clk 0:00:59]} 24. Nd3 {[%clk 0:00:50]}  Qxb6 {[%clk 0:00:59]} 25. Rcb1 {[%clk 0:00:49]}  Qc7 {[%clk 0:00:58]} 26. Nc5 {[%clk 0:00:49]}  Rb8 {[%clk 0:00:56]} 27. Rxb8 {[%clk 0:00:42]}  Qxb8 {[%clk 0:00:56]} 28. Rxa5 {[%clk 0:00:41]}  Qb1+ {[%clk 0:00:48]} 29. Qe1 {[%clk 0:00:35]}  Qc2 {[%clk 0:00:45]} 30. Ra1 {[%clk 0:00:33]}  Rb8 {[%clk 0:00:41]} 31. Qd2 {[%clk 0:00:31]}  Rb2 {[%clk 0:00:39]} 32. Qxc2 {[%clk 0:00:31]}  Rxc2 {[%clk 0:00:40]} 33. Ng5 {[%clk 0:00:28]}  Rxc3 {[%clk 0:00:32]} 34. Ncxe6 {[%clk 0:00:23]}  fxe6 {[%clk 0:00:33]} 35. Nxe6 {[%clk 0:00:24]}  Rd3 {[%clk 0:00:26]} 36. Ra8+ {[%clk 0:00:20]}  Kh7 {[%clk 0:00:26]} 37. Ng5+ {[%clk 0:00:20]}  Kh6 {[%clk 0:00:25]} 38. Ra6+ {[%clk 0:00:18]}  Ng6 {[%clk 0:00:25]} 39. Ne6 {[%clk 0:00:16]}  Rd1+ {[%clk 0:00:22]} 40. Kh2 {[%clk 0:00:16]}  Nxh4 {[%clk 0:00:23]} 41. g3 {[%clk 0:00:11]}  Nf3+ {[%clk 0:00:21]} 42. Kg2 {[%clk 0:00:11]}  Ne1+ {[%clk 0:00:19]} 43. Kh3 {[%clk 0:00:09]}  g6 {[%clk 0:00:17]} 44. f4 {[%clk 0:00:07]}  Nf3 {[%clk 0:00:15]} 45. Kg2 {[%clk 0:00:06]}  Nxd4 {[%clk 0:00:13]} 46. Ng5 {[%clk 0:00:05]}  Rd2+ {[%clk 0:00:11]} 47. Kf1 {[%clk 0:00:05]}  h4 {[%clk 0:00:11]} 48. Ra7 {[%clk 0:00:04]}  Kh5 {[%clk 0:00:12]} 49. gxh4 {[%clk 0:00:03]}  Kxh4 {[%clk 0:00:12]} 50. e6 {[%clk 0:00:03]}  Kg3 {[%clk 0:00:06]} 51. Ke1 {[%clk 0:00:01]}  Re2+ {[%clk 0:00:06]} 0-1

[Event "January 9 Early 2024"]
[Site "https://www.chess.com"]
[Date "2024.01.11"]
[Round "8"]
[White "Firouzja, Alireza"]
[Black "Duda, Jan-Krzysztof"]
[Result "0-1"]
[Board "189"]
[TimeControl "180+1"]
[WhiteFideId "12573981"]
[BlackFideId "1170546"]
[WhiteElo "3136"]
[BlackElo "3076"]
[WhiteTeam "FRA"]
[BlackTeam "POL"]
[WhiteClock "0:00:02"]
[BlackClock "0:00:06"]

1. e4 {[%clk 0:03:00]}  e5 {[%clk 0:03:00]} 2. Nf3 {[%clk 0:02:59]}  Nf6 {[%clk 0:03:00]} 3. d3 {[%clk 0:03:00]}  Nc6 {[%clk 0:02:59]} 4. g3 {[%clk 0:03:00]}  Bc5 {[%clk 0:02:56]} 5. Bg2 {[%clk 0:03:00]}  d6 {[%clk 0:02:56]} 6. O-O {[%clk 0:03:00]}  O-O {[%clk 0:02:55]} 7. c3 {[%clk 0:03:00]}  a5 {[%clk 0:02:55]} 8. Re1 {[%clk 0:02:56]}  h6 {[%clk 0:02:53]} 9. d4 {[%clk 0:02:53]}  Ba7 {[%clk 0:02:53]} 10. h3 {[%clk 0:02:52]}  Re8 {[%clk 0:02:53]} 11. Na3 {[%clk 0:02:49]}  Bd7 {[%clk 0:02:43]} 12. Nb5 {[%clk 0:02:46]}  Bb6 {[%clk 0:02:35]} 13. a4 {[%clk 0:02:37]}  exd4 {[%clk 0:01:56]} 14. Nfxd4 {[%clk 0:02:36]}  Ne5 {[%clk 0:01:55]} 15. f4 {[%clk 0:02:23]}  Qc8 {[%clk 0:01:26]} 16. Kh2 {[%clk 0:02:17]}  Ng6 {[%clk 0:01:25]} 17. c4 {[%clk 0:02:12]}  Bc5 {[%clk 0:01:24]} 18. Nc3 {[%clk 0:02:04]}  c6 {[%clk 0:01:21]} 19. Be3 {[%clk 0:02:02]}  Qc7 {[%clk 0:01:18]} 20. Qc2 {[%clk 0:01:57]}  Qb6 {[%clk 0:01:16]} 21. Rad1 {[%clk 0:01:56]}  Rad8 {[%clk 0:01:09]} 22. b3 {[%clk 0:01:50]}  Nf8 {[%clk 0:01:02]} 23. Qf2 {[%clk 0:01:47]}  Bc8 {[%clk 0:00:56]} 24. Rd3 {[%clk 0:01:44]}  Qc7 {[%clk 0:00:33]} 25. Red1 {[%clk 0:01:35]}  Bb4 {[%clk 0:00:33]} 26. Nde2 {[%clk 0:01:35]}  N8d7 {[%clk 0:00:31]} 27. Bd4 {[%clk 0:01:14]}  Bc5 {[%clk 0:00:15]} 28. g4 {[%clk 0:01:03]}  Bxd4 {[%clk 0:00:14]} 29. Rxd4 {[%clk 0:01:00]}  Nf8 {[%clk 0:00:06]} 30. Qf3 {[%clk 0:00:42]}  Ne6 {[%clk 0:00:06]} 31. R4d2 {[%clk 0:00:29]}  Nc5 {[%clk 0:00:07]} 32. Ng3 {[%clk 0:00:18]}  Nxb3 {[%clk 0:00:06]} 33. Rf2 {[%clk 0:00:18]}  Nc5 {[%clk 0:00:07]} 34. g5 {[%clk 0:00:14]}  hxg5 {[%clk 0:00:06]} 35. fxg5 {[%clk 0:00:15]}  Nh7 {[%clk 0:00:07]} 36. h4 {[%clk 0:00:15]}  Be6 {[%clk 0:00:07]} 37. Nce2 {[%clk 0:00:14]}  Bxc4 {[%clk 0:00:07]} 38. Nf4 {[%clk 0:00:14]}  Qe7 {[%clk 0:00:07]} 39. Nfh5 {[%clk 0:00:11]}  Qe5 {[%clk 0:00:07]} 40. Qe3 {[%clk 0:00:09]}  Nxa4 {[%clk 0:00:07]} 41. Rf5 {[%clk 0:00:09]}  Qc3 {[%clk 0:00:07]} 42. Qf4 {[%clk 0:00:05]}  Nb2 {[%clk 0:00:07]} 43. Rxd6 {[%clk 0:00:05]}  Nd3 {[%clk 0:00:07]} 44. Rxd8 {[%clk 0:00:05]}  Rxd8 {[%clk 0:00:07]} 45. Qc7 {[%clk 0:00:05]}  Rf8 {[%clk 0:00:07]} 46. g6 {[%clk 0:00:04]}  fxg6 {[%clk 0:00:07]} 47. e5 {[%clk 0:00:04]}  gxh5 {[%clk 0:00:06]} 48. Nxh5 {[%clk 0:00:04]}  Bf7 {[%clk 0:00:07]} 49. e6 {[%clk 0:00:03]}  Bxh5 {[%clk 0:00:07]} 50. e7 {[%clk 0:00:01]}  Rxf5 {[%clk 0:00:06]} 51. Qc8+ {[%clk 0:00:02]}  Rf8 {[%clk 0:00:06]} 52. Qe6+ {[%clk 0:00:02]}  Bf7 {[%clk 0:00:06]} 0-1